[Event "1st Bella Italia International 2022"]
[Site "Lignano"]
[Date "2022.08.20"]
[Round "6.17"]
[White "Marson, Roy"]
[Black "Haller, Quentin"]
[Result "1/2-1/2"]
[ECO "D40"]
[WhiteElo "1959"]
[BlackElo "1995"]
[Annotator "NA RC"]
[PlyCount "91"]
[EventDate "2022.08.18"]
[EventCountry "ITA"]
[SourceTitle "playchess.com"]
[Source "ChessBase"]
[SourceQuality "1"]
[TimeControl "5400+30"]

1. e4 {[%emt 0:00:10]} c6 {[%emt 0:00:06]} 2. d4 {[%emt 0:00:31]} d5 {[%emt 0:00:07]} 3. exd5 {[%emt 0:00:34]} cxd5 {[%emt 0:00:09]} 4. c4 {[%emt 0:00:22]} Nf6 {[%emt 0:00:15]} 5. Nc3 {[%emt 0:00:38]} e6 {[%emt 0:00:07]} 6. Nf3 {[%emt 0:00:42]} Nc6 {[%emt 0:00:34]} 7. a3 {[%emt 0:02:07]} Be7 {[%emt 0:01:53]} 8. Bd3 {[%emt 0:01:50]} dxc4 {[%emt 0:01:31]} 9. Bxc4 {[%emt 0:00:10]} O-O {[%emt 0:01:00]} 10. O-O {[%emt 0:00:58]} Qc7 {[%emt 0:03:43]} 11. Bb3 {[%emt 0:02:27]} Rd8 {[%emt 0:01:48]} 12. Re1 {[%emt 0:03:56]} b6 {[%emt 0:03:29]} 13. Nb5 {[%emt 0:05:06]} Qb8 {[%emt 0:05:06]} 14. Ne5 {[%emt 0:18:06]} Nxe5 {[%emt 0:02:34]} 15. Bf4 {[%emt 0:01:33]} Nfd7 {[%emt 0:05:33]} 16. Rxe5 {[%emt 0:01:23]} Nxe5 {[%emt 0:06:19]} 17. Bxe5 {[%emt 0:00:51]} Qxe5 {[%emt 0:05:45]} 18. dxe5 {[%emt 0:00:41]} Rxd1+ {[%emt 0:00:06]} 19. Rxd1 {[%emt 0:00:09]} a6 {[%emt 0:02:36]} 20. Nd6 {[%emt 0:03:16]} Kf8 {[%emt 0:03:30]} 21. f4 {[%emt 0:05:12]} Rb8 {[%emt 0:06:13]} 22. Kf2 {[%emt 0:12:07]} Bxd6 {[%emt 0:00:26]} 23. Rxd6 {[%emt 0:05:21]} Ke7 {[%emt 0:00:30]} 24. Ke3 {[%emt 0:01:27]} Bd7 {[%emt 0:00:58]} 25. g4 {[%emt 0:10:45]} a5 {[%emt 0:02:32]} 26. h4 {[%emt 0:07:21]} b5 {[%emt 0:02:47]} 27. Bc2 {[%emt 0:00:41]} b4 {[%emt 0:03:44]} 28. f5 {[%emt 0:03:02]} Rc8 {[%emt 0:04:16]} 29. Be4 {[%emt 0:02:20]} bxa3 {[%emt 0:02:13]} 30. bxa3 {[%emt 0:00:05]} Rc3+ {[%emt 0:03:25]} 31. Rd3 {[%emt 0:00:08]} Rc7 {[%emt 0:02:51]} 32. Kf4 {[%emt 0:01:44]} h6 {[%emt 0:01:58]} 33. Rd4 {[%emt 0:04:24]} Bc8 {[%emt 0:01:48]} 34. Bd3 {[%emt 0:03:13]} Rc3 {[%emt 0:05:51]} 35. Bb5 {[%emt 0:03:56]} exf5 {[%emt 0:06:09]} 36. gxf5 {[%emt 0:00:08]} Rxa3 {[%emt 0:01:23]} 37. Rc4 {[%emt 0:00:27]} Rb3 {[%emt 0:01:06]} 38. Rxc8 {[%emt 0:00:43]} Rxb5 {[%emt 0:00:09]} 39. Rc7+ {[%emt 0:00:15]} Ke8 {[%emt 0:00:39]} 40. f6 {[%emt 0:00:52]} Rb4+ {[%emt 0:00:22]} 41. Kg3 {[%emt 0:00:20]} gxf6 {[%emt 0:00:56]} 42. exf6 {[%emt 0:00:05]} Rb6 {[%emt 0:03:05]} 43. Re7+ {[%emt 0:00:33]} Kf8 {[%emt 0:00:18]} 44. Ra7 {[%emt 0:00:06]} Rxf6 {[%emt 0:00:05]} 45. Rxa5 {[%emt 0:00:06]} Kg7 {[%emt 0:00:53]} 46. Kg4 {[%emt 0:00:22]} 1/2-1/2

[Event "1st Bella Italia International 2022"]
[Site "Lignano"]
[Date "2022.08.20"]
[Round "6.18"]
[White "Cassi, Elisa"]
[Black "Perossa, Nicolas"]
[Result "0-1"]
[ECO "C78"]
[WhiteElo "1922"]
[BlackElo "2107"]
[Annotator "NA RC"]
[PlyCount "54"]
[EventDate "2022.08.18"]
[EventCountry "ITA"]
[SourceTitle "playchess.com"]
[Source "ChessBase"]
[SourceQuality "1"]
[TimeControl "5400+30"]

1. e4 {[%emt 0:00:01]} e5 {[%emt 0:00:08]} 2. Nf3 {[%emt 0:00:06]} Nc6 {[%emt 0:00:07]} 3. Bb5 {[%emt 0:00:26]} a6 {[%emt 0:00:09]} 4. Ba4 {[%emt 0:00:04]} Nf6 {[%emt 0:00:10]} 5. O-O {[%emt 0:00:07]} b5 {[%emt 0:00:03]} 6. Bb3 {[%emt 0:00:06]} Bc5 {[%emt 0:00:08]} 7. c3 {[%emt 0:02:36]} d6 {[%emt 0:00:11]} 8. d4 {[%emt 0:00:10]} Bb6 {[%emt 0:00:05]} 9. a4 {[%emt 0:02:18]} Rb8 {[%emt 0:00:33]} 10. d5 {[%emt 0:09:08]} Ne7 {[%emt 0:05:21]} 11. axb5 {[%emt 0:01:23]} axb5 {[%emt 0:00:16]} 12. Qd3 {[%emt 0:00:48]} O-O {[%emt 0:01:11]} 13. Be3 {[%emt 0:00:36]} Bxe3 {[%emt 0:01:08]} 14. Qxe3 {[%emt 0:00:55]} Ng6 {[%emt 0:01:28]} 15. Rc1 {[%emt 0:12:41]} Ng4 {[%emt 0:11:55]} 16. Qd2 {[%emt 0:01:40]} f5 {[%emt 0:01:55]} 17. Ng5 {[%emt 0:18:50]} fxe4 {[%emt 0:02:55]} 18. Nxe4 {[%emt 0:00:35]} Nxh2 {[%emt 0:06:36]} 19. Qg5 {[%emt 0:07:06]} Qxg5 {[%emt 0:01:03]} 20. Nxg5 {[%emt 0:00:05]} Ng4 {[%emt 0:00:21]} 21. f3 {[%emt 0:00:38]} Nf4 {[%emt 0:11:15]} 22. Rc2 {[%emt 0:09:37]} Ne3 {[%emt 0:19:17]} 23. Rd2 {[%emt 0:00:08]} Rf6 {[%emt 0:01:00]} 24. g4 {[%emt 0:13:23]} Bb7 {[%emt 0:03:23]} 25. Na3 {[%emt 0:02:08]} Bxd5 {[%emt 0:03:51]} 26. Bxd5+ {[%emt 0:00:16]} Nfxd5 {[%emt 0:01:39]} 27. Nxb5 {[%emt 0:04:09]} Rxb5 {[%emt 0:04:16]} 0-1

[Event "1st Bella Italia International 2022"]
[Site "Lignano"]
[Date "2022.08.20"]
[Round "6.19"]
[White "Rotolante, Luca"]
[Black "Olabe Odriozola, Eduardo"]
[Result "0-1"]
[ECO "A87"]
[WhiteElo "2010"]
[BlackElo "1946"]
[Annotator "NA RC"]
[PlyCount "104"]
[EventDate "2022.08.18"]
[EventCountry "ITA"]
[SourceTitle "playchess.com"]
[Source "ChessBase"]
[SourceQuality "1"]
[TimeControl "5400+30"]

1. d4 {[%emt 0:00:03]} f5 {[%emt 0:01:11]} 2. Nf3 {[%emt 0:00:28]} g6 {[%emt 0:01:18]} 3. g3 {[%emt 0:00:15]} Bg7 {[%emt 0:00:06]} 4. Bg2 {[%emt 0:00:05]} Nf6 {[%emt 0:00:13]} 5. O-O {[%emt 0:00:09]} O-O {[%emt 0:01:34]} 6. c4 {[%emt 0:00:07]} d6 {[%emt 0:01:21]} 7. b3 {[%emt 0:00:24]} Ne4 {[%emt 0:06:33]} 8. Bb2 {[%emt 0:00:25]} Nd7 {[%emt 0:02:34]} 9. Qc1 {[%emt 0:02:27]} c6 {[%emt 0:05:31]} 10. e3 {[%emt 0:00:59]} Qc7 {[%emt 0:13:19]} 11. Nbd2 {[%emt 0:00:31]} Ndf6 {[%emt 0:01:18]} 12. Nxe4 {[%emt 0:01:45]} Nxe4 {[%emt 0:00:39]} 13. Ne1 {[%emt 0:00:48]} Bd7 {[%emt 0:06:12]} 14. Nd3 {[%emt 0:00:46]} Rae8 {[%emt 0:00:36]} 15. c5 {[%emt 0:04:20]} Kh8 {[%emt 0:00:53]} 16. cxd6 {[%emt 0:03:39]} exd6 {[%emt 0:01:23]} 17. d5 {[%emt 0:00:46]} c5 {[%emt 0:01:17]} 18. Bxg7+ {[%emt 0:03:27]} Kxg7 {[%emt 0:00:05]} 19. Qb2+ {[%emt 0:00:28]} Kg8 {[%emt 0:00:31]} 20. Nf4 {[%emt 0:01:04]} b5 {[%emt 0:00:50]} 21. Rfe1 {[%emt 0:01:27]} b4 {[%emt 0:08:20]} 22. Bf1 {[%emt 0:00:56]} Qd8 {[%emt 0:08:51]} 23. a3 {[%emt 0:03:32]} a5 {[%emt 0:01:54]} 24. axb4 {[%emt 0:00:06]} axb4 {[%emt 0:00:27]} 25. Ra7 {[%emt 0:00:25]} Re7 {[%emt 0:04:32]} 26. Rea1 {[%emt 0:00:42]} Nc3 {[%emt 0:01:10]} 27. Bc4 {[%emt 0:00:16]} Qe8 {[%emt 0:05:01]} 28. h4 {[%emt 0:01:07]} h6 {[%emt 0:01:56]} 29. R1a6 {[%emt 0:01:17]} g5 {[%emt 0:01:04]} 30. Ng2 {[%emt 0:02:43]} Qg6 {[%emt 0:01:48]} 31. Qd2 {[%emt 0:01:27]} Ne4 {[%emt 0:08:25]} 32. Qc1 {[%emt 0:01:44]} f4 {[%emt 0:05:27]} 33. exf4 {[%emt 0:00:35]} gxf4 {[%emt 0:00:04]} 34. Nxf4 {[%emt 0:01:35]} Rxf4 {[%emt 0:00:18]} 35. Qxf4 {[%emt 0:00:15]} Rf7 {[%emt 0:00:07]} 36. Qe3 {[%emt 0:01:46]} Nxf2 {[%emt 0:01:58]} 37. Rxd7 {[%emt 0:00:30]} Qb1+ {[%emt 0:00:18]} 38. Bf1 {[%emt 0:00:34]} Nh3+ {[%emt 0:00:26]} 39. Kh2 {[%emt 0:00:02]} Qxf1 {[%emt 0:04:04]} 40. Rd8+ {[%emt 0:00:24]} Kg7 {[%emt 0:00:48]} 41. Ra2 {[%emt 0:00:07]} Nf2 {[%emt 0:00:28]} 42. Rxf2 {[%emt 0:04:19]} Rxf2+ {[%emt 0:00:02]} 43. Qxf2 {[%emt 0:00:06]} Qxf2+ {[%emt 0:00:13]} 44. Kh3 {[%emt 0:00:01]} Qf5+ {[%emt 0:00:24]} 45. Kh2 {[%emt 0:00:06]} Qxd5 {[%emt 0:00:06]} 46. Rd7+ {[%emt 0:00:10]} Kg6 {[%emt 0:01:18]} 47. g4 {[%emt 0:00:10]} Qe6 {[%emt 0:00:51]} 48. h5+ {[%emt 0:00:15]} Kg5 {[%emt 0:00:37]} 49. Rg7+ {[%emt 0:00:10]} Kh4 {[%emt 0:00:07]} 50. Rg6 {[%emt 0:00:04]} Qe2+ {[%emt 0:00:18]} 51. Kg1 {[%emt 0:00:04]} Kg3 {[%emt 0:00:13]} 52. Rxh6 {[%emt 0:00:04]} Qe1# {[%emt 0:07:31]} 0-1

[Event "1st Bella Italia International 2022"]
[Site "Lignano"]
[Date "2022.08.20"]
[Round "6.20"]
[White "Arana Garate, Jon"]
[Black "Bartolozzi, Roberto"]
[Result "1-0"]
[ECO "D02"]
[WhiteElo "1933"]
[BlackElo "1967"]
[Annotator "NA RC"]
[PlyCount "85"]
[EventDate "2022.08.18"]
[EventCountry "ITA"]
[SourceTitle "playchess.com"]
[Source "ChessBase"]
[SourceQuality "1"]
[TimeControl "5400+30"]

1. d4 {[%emt 0:00:03]} d5 {[%emt 0:00:16]} 2. Bf4 {[%emt 0:00:12]} Nf6 {[%emt 0:00:10]} 3. e3 {[%emt 0:00:19]} e6 {[%emt 0:00:08]} 4. Nd2 {[%emt 0:00:18]} Bd6 {[%emt 0:00:28]} 5. Bg3 {[%emt 0:00:16]} c5 {[%emt 0:00:50]} 6. c3 {[%emt 0:00:06]} Nc6 {[%emt 0:02:45]} 7. Ngf3 {[%emt 0:00:32]} Qe7 {[%emt 0:08:00]} 8. Ne5 {[%emt 0:02:10]} Bxe5 {[%emt 0:02:01]} 9. dxe5 {[%emt 0:00:49]} Nd7 {[%emt 0:01:38]} 10. Nf3 {[%emt 0:01:08]} f6 {[%emt 0:04:59]} 11. Bb5 {[%emt 0:08:42]} O-O {[%emt 0:04:35]} 12. Bxc6 {[%emt 0:09:51]} bxc6 {[%emt 0:00:04]} 13. Qa4 {[%emt 0:00:32]} Nxe5 {[%emt 0:10:29]} 14. Nxe5 {[%emt 0:03:40]} fxe5 {[%emt 0:00:23]} 15. Bxe5 {[%emt 0:02:42]} Bd7 {[%emt 0:02:03]} 16. O-O {[%emt 0:15:22]} Be8 {[%emt 0:05:38]} 17. b4 {[%emt 0:11:57]} cxb4 {[%emt 0:08:03]} 18. cxb4 {[%emt 0:05:31]} Rf5 {[%emt 0:08:28]} 19. f4 {[%emt 0:02:25]} Qb7 {[%emt 0:08:11]} 20. Qb3 {[%emt 0:09:41]} Rc8 {[%emt 0:00:55]} 21. Rac1 {[%emt 0:00:49]} Qd7 {[%emt 0:00:52]} 22. Rc5 {[%emt 0:01:20]} Qe7 {[%emt 0:16:12]} 23. Qc3 {[%emt 0:00:46]} Rd8 {[%emt 0:00:45]} 24. Rc1 {[%emt 0:07:09]} Rf7 {[%emt 0:02:47]} 25. a4 {[%emt 0:00:25]} Qb7 {[%emt 0:01:25]} 26. Qd4 {[%emt 0:00:56]} Qa6 {[%emt 0:02:13]} 27. Ra1 {[%emt 0:08:17]} Qb6 {[%emt 0:02:09]} 28. Qc3 {[%emt 0:01:08]} a6 {[%emt 0:01:45]} 29. b5 {[%emt 0:03:09]} Rc8 {[%emt 0:03:25]} 30. a5 {[%emt 0:00:45]} Qb7 {[%emt 0:00:24]} 31. b6 {[%emt 0:00:31]} Bd7 {[%emt 0:00:38]} 32. Rf1 {[%emt 0:01:19]} Be8 {[%emt 0:00:10]} 33. Rf3 {[%emt 0:00:46]} Qd7 {[%emt 0:00:25]} 34. Qd3 {[%emt 0:00:29]} Qe7 {[%emt 0:00:37]} 35. Qc2 {[%emt 0:01:27]} Rf5 {[%emt 0:00:34]} 36. g4 {[%emt 0:01:21]} Rxe5 {[%emt 0:00:06]} 37. fxe5 {[%emt 0:00:10]} Bg6 {[%emt 0:00:01]} 38. Qc3 {[%emt 0:00:58]} Be4 {[%emt 0:01:00]} 39. Rf4 {[%emt 0:01:00]} g5 {[%emt 0:00:59]} 40. Rf6 {[%emt 0:00:10]} d4 {[%emt 0:00:59]} 41. exd4 {[%emt 0:00:09]} Rf8 {[%emt 0:01:12]} 42. Qe3 {[%emt 0:00:21]} Qd8 {[%emt 0:02:48]} 43. Rf4 1-0

[Event "1st Bella Italia International 2022"]
[Site "Lignano"]
[Date "2022.08.21"]
[Round "7.1"]
[White "Visakh N R"]
[Black "Ghosh, Diptayan"]
[Result "1/2-1/2"]
[ECO "D02"]
[WhiteElo "2503"]
[BlackElo "2538"]
[Annotator "TA"]
[PlyCount "41"]
[EventDate "2022.08.18"]
[EventCountry "ITA"]
[SourceTitle "playchess.com"]
[Source "ChessBase"]
[SourceQuality "1"]
[TimeControl "5400+30"]

{[%evp 17,41,23,29,29,27,0,0,0,0,0,0,-318,0,0,0,0,0,0,0,0,0,0,0,0,0,0]} 1. d4 {[%emt 0:00:32]} Nf6 {[%emt 0:03:38]} 2. Nf3 {[%emt 0:00:35]} d5 {[%emt 0:00:14]} 3. Bf4 {[%emt 0:00:34]} e6 {[%emt 0:00:20]} 4. e3 {[%emt 0:00:18]} c5 {[%emt 0:00:06]} 5. c3 {[%emt 0:00:14]} Nc6 {[%emt 0:00:13]} 6. Bd3 {[%emt 0:00:40]} Bd6 {[%emt 0:00:18]} 7. Bg3 {[%emt 0:00:15]} O-O {[%emt 0:00:26]} 8. Nbd2 {[%emt 0:00:24]} Qe7 {[%emt 0:00:27]} 9. Ne5 {[%emt 0:00:23]} Nd7 {[%emt 0:00:59]} 10. Nxd7 {[%emt 0:00:38] D02: 1 d4 d5 2 Nf3 sidelines, including 2...Nf6 3 g3 and 2...Nf6 3 Bf4.} ({Much worse is} 10. Qh5 g6 11. Nxc6 bxc6 $15) 10... Qxd7 {[%emt 0:00:04]} 11. Bxd6 {[%emt 0:00:20]} (11. dxc5 {keeps more tension.} Bxc5 12. Nf3 f6 13. b4) 11... Qxd6 {[%emt 0:00:04]} 12. dxc5 {[%emt 0:00:27]} Qxc5 {[%emt 0:00:06]} 13. Bxh7+ {[%emt 0:00:38]} Kxh7 {[%emt 0:00:04]} 14. Qh5+ {[%emt 0:00:05]} Kg8 {[%emt 0:00:04] [#] Threatens to win with ...Qb5.} 15. Ne4 $1 {[%emt 0:00:08] The position is equal.} g6 $1 {[%emt 0:00:06] White must now prevent ...Qe7.} 16. Qg5 {[%emt 0:00:16]} ({Don't go for} 16. Nf6+ $2 Kg7 17. Qg5 Rh8 $19) 16... Qe7 {[%emt 0:00:06]} (16... Qb6 $5 17. Nf6+ Kg7 18. Nh5+ Kh7 $11) 17. Nf6+ {[%emt 0:00:06]} Kg7 {[%emt 0:00:04]} 18. Nh5+ {[%emt 0:00:05]} Kh7 {[%emt 0:00:09]} (18... Kg8 $5 19. Nf6+ Kg7 20. Nh5+ Kh7 21. Nf6+ Kg7 $11) 19. Nf6+ {[%emt 0:00:05]} Kg7 {[%emt 0:00:03]} 20. Nh5+ {[%emt 0:00:06] [#]} Kh7 $146 {[%emt 0:00:03]} (20... Kg8 $5 21. Nf6+ Kg7 $11) ({Predecessor:} 20... Kg8) 21. Nf6+ {[%emt 0:00:06] Weighted Error Value: White=0.03 (flawless) /Black=0.01 (flawless)} 1/2-1/2

[Event "1st Bella Italia International 2022"]
[Site "Lignano"]
[Date "2022.08.21"]
[Round "7.2"]
[White "Aaron, Deepak"]
[Black "Karthik Venkataraman"]
[Result "1/2-1/2"]
[ECO "B87"]
[WhiteElo "2221"]
[BlackElo "2483"]
[Annotator "TA"]
[PlyCount "89"]
[EventDate "2022.08.18"]
[EventCountry "ITA"]
[SourceTitle "playchess.com"]
[Source "ChessBase"]
[SourceQuality "1"]
[TimeControl "5400+30"]

{[%evp 21,89,-50,-41,-63,-64,-53,-55,-63,-65,-102,-100,-93,-59,-54,-42,-83,-93,-95,-91,-133,-91,-85,-89,-91,-21,-10,0,-100,0,-15,-14,-12,-22,-6,-14,-34,-27,-41,-23,-27,0,0,0,0,0,0,0,0,0,0,0,0,0,0,0,0,0,0,0,0,0,0,0,0,0,0,0,0,0,0]} 1. e4 {[%emt 0:00:03]} c5 {[%emt 0:05:24]} 2. Nc3 {[%emt 0:00:05]} a6 {[%emt 0:00:47]} 3. Nf3 {[%emt 0:08:10]} d6 {[%emt 0:00:24]} 4. d4 {[%emt 0:01:53]} cxd4 {[%emt 0:00:06]} 5. Nxd4 {[%emt 0:00:53]} Nf6 {[%emt 0:00:08]} 6. Bc4 {[%emt 0:02:18]} e6 {[%emt 0:00:10]} 7. Bb3 {[%emt 0:00:03]} b5 {[%emt 0:01:34]} 8. O-O {[%emt 0:05:08]} Be7 {[%emt 0:00:05]} 9. f4 {[%emt 0:07:22]} O-O {[%emt 0:05:12]} 10. e5 {[%emt 0:01:53]} dxe5 {[%emt 0:04:50]} 11. fxe5 {[%emt 0:00:10]} Nfd7 $1 {[%emt 0:00:12]} 12. Nf3 {[%emt 0:06:21] B87: Sicilian Scheveningen/Najdorf: 6 Bc4, with early ...b5.} Nc6 {[%emt 0:04:36][%cal Bb8c6,Bc6d4,Bd4f3][%mdl 32]} 13. Bf4 {[%emt 0:01:52]} Nc5 {[%emt 0:01:27] [#] Inhibits Ne4.} 14. Qe1 $146 {[%emt 0:01:13] Black is slightly better.} ({Predecessor:} 14. Qxd8 Rxd8 15. Rad1 Bb7 16. Rxd8+ Rxd8 17. Rd1 Rxd1+ 18. Nxd1 Nb4 19. a3 Nxb3 20. cxb3 {0-1 (50) Apitzsch,M-Womacka,M DDR 1988}) 14... Nd4 {[%emt 0:12:29]} 15. Rd1 {[%emt 0:11:23] [#]} Nxf3+ {[%emt 0:02:11]} 16. Rxf3 {[%emt 0:00:31]} Qc7 {[%emt 0:01:19]} 17. Qg3 {[%emt 0:02:26]} Rd8 {[%emt 0:12:44]} 18. Rxd8+ {[%emt 0:08:43]} ({Much worse is} 18. Bh6 Rxd1+ 19. Nxd1 Bf8 $17) 18... Qxd8 {[%emt 0:00:45]} 19. Bh6 {[%emt 0:01:15][%csl Gh6][%cal Rg3g7]} Bf8 {[%emt 0:17:54]} 20. Bg5 {[%emt 0:04:11]} Qd4+ {[%emt 0:00:59]} 21. Be3 {[%emt 0:00:30]} Qd7 {[%emt 0:00:26]} 22. Qh4 {[%emt 0:02:35]} Be7 {[%emt 0:03:48]} (22... g6 $17) 23. Qf4 $11 {[%emt 0:08:08]} Bf8 {[%emt 0:00:06]} ({Black should try} 23... Qe8 $11) 24. Qh4 $1 $17 {[%emt 0:00:33] [#]} Be7 {[%emt 0:04:02]} (24... g6 $1 $17) 25. Qf4 $11 {[%emt 0:00:27]} Qe8 {[%emt 0:06:09]} 26. Ne4 {[%emt 0:01:40]} Nxe4 {[%emt 0:00:09]} 27. Qxe4 {[%emt 0:00:06]} Bd7 {[%emt 0:00:07] Strongly threatening ...Bc6.} 28. Rg3 {[%emt 0:03:47]} Bc6 {[%emt 0:00:55]} 29. Qg4 {[%emt 0:00:24][%csl Gg3][%cal Rg4g7]} g6 {[%emt 0:01:04]} 30. h4 {[%emt 0:01:09][%cal Bh2h4,Bh4h5][%mdl 32]} Rd8 {[%emt 0:01:20]} 31. h5 {[%emt 0:02:17] The position is equal.} Bd5 {[%emt 0:00:55]} 32. Bg5 {[%emt 0:03:23]} Bxb3 {[%emt 0:00:39]} 33. axb3 {[%emt 0:00:24]} Bxg5 {[%emt 0:01:10]} 34. Qxg5 {[%emt 0:00:04][%mdl 4096] Endgame KQR-KQR} Rd1+ {[%emt 0:00:05]} 35. Kh2 {[%emt 0:00:25]} Qd8 {[%emt 0:00:23]} 36. Qxd8+ {[%emt 0:01:55]} Rxd8 {[%emt 0:00:03] KR-KR} 37. h6 {[%emt 0:00:05]} Rd4 {[%emt 0:01:06]} 38. Kh3 {[%emt 0:00:49]} Rd1 {[%emt 0:01:02]} 39. Kg4 {[%emt 0:01:00]} Kf8 {[%emt 0:03:53]} 40. Rc3 $1 {[%emt 0:00:12] And now Rc8+ would win.} Rh1 {[%emt 0:01:09]} 41. Rc8+ {[%emt 0:00:29]} Ke7 {[%emt 0:00:05]} 42. Rc7+ {[%emt 0:00:06]} Kf8 {[%emt 0:00:04]} 43. Rc8+ $1 {[%emt 0:05:54]} Ke7 {[%emt 0:00:03]} 44. Rc7+ {[%emt 0:00:12]} Kf8 {[%emt 0:00:03]} 45. Rc8+ $1 {[%emt 0:01:29] Weighted Error Value: White=0.05 (flawless) /Black=0.11 (very precise)} 1/2-1/2

[Event "1st Bella Italia International 2022"]
[Site "Lignano"]
[Date "2022.08.21"]
[Round "7.3"]
[White "Das, Sayantan"]
[Black "Jonkman, Harmen"]
[Result "1-0"]
[ECO "C65"]
[WhiteElo "2449"]
[BlackElo "2373"]
[Annotator "TA"]
[PlyCount "93"]
[EventDate "2022.08.18"]
[EventCountry "ITA"]
[SourceTitle "playchess.com"]
[Source "ChessBase"]
[SourceQuality "1"]
[TimeControl "5400+30"]

{[%evp 10,93,20,29,30,19,32,40,37,34,39,25,31,32,47,43,46,44,51,56,59,57,66,65,60,71,81,87,97,37,46,34,42,15,37,36,56,35,24,2,0,0,39,36,39,39,45,46,72,55,64,14,6,0,0,0,29,59,53,0,5,18,10,0,0,0,225,218,185,152,165,162,148,59,520,518,518,515,506,500,492,477,461,448,478,460]} 1. e4 {[%emt 0:00:39]} e5 {[%emt 0:00:07]} 2. Nf3 {[%emt 0:00:07]} Nc6 {[%emt 0:00:09]} 3. Bb5 {[%emt 0:00:09]} Nf6 {[%emt 0:00:09]} 4. d3 {[%emt 0:00:11]} d6 {[%emt 0:01:02]} 5. O-O {[%emt 0:00:21]} Be7 {[%emt 0:01:53]} 6. c3 {[%emt 0:02:01]} O-O {[%emt 0:01:15] C65: Ruy Lopez: Berlin Defence (3...Nf6), unusual lines and 4 0-0 Bc5.} 7. h3 {[%emt 0:00:32]} Bd7 {[%emt 0:03:58]} 8. Re1 {[%emt 0:01:41]} h6 {[%emt 0:02:20] White is slightly better.} 9. Ba4 {[%emt 0:01:15]} Nh7 {[%emt 0:01:28]} 10. d4 {[%emt 0:08:08]} Bf6 {[%emt 0:06:58] [#]} 11. Be3 $146 {[%emt 0:04:15]} ({Predecessor:} 11. d5 Ne7 12. c4 Ng6 13. Nc3 Bc8 14. Be3 Bg5 15. Nxg5 Nxg5 16. Qh5 a6 17. a3 {½-½ (67) Pitl,G (2410)-Jacobsen,B (2323) Borup 2008}) 11... Qe8 {[%emt 0:08:06][%cal Oc6d4]} 12. Bc2 {[%emt 0:09:29]} Ne7 {[%emt 0:11:14]} 13. Nbd2 {[%emt 0:03:39][%cal Bb1d2,Bd2f1,Bf1g3,Bg3f5][%mdl 32]} Ng6 {[%emt 0:01:57]} 14. Nf1 {[%emt 0:07:38]} Ng5 {[%emt 0:01:14]} 15. N3h2 {[%emt 0:01:15]} Ne6 {[%emt 0:02:07]} 16. Ng3 {[%emt 0:02:42]} Bg5 {[%emt 0:01:28]} 17. Nf5 {[%emt 0:02:49]} f6 {[%emt 0:17:29]} 18. Nf1 {[%emt 0:09:49]} Kh7 {[%emt 0:04:57]} 19. Bb3 {[%emt 0:09:24]} (19. g3 $16) 19... Bxe3 $14 {[%emt 0:01:54]} 20. N1xe3 {[%emt 0:00:42]} Ngf4 {[%emt 0:00:58]} 21. Ng3 {[%emt 0:12:29]} a5 {[%emt 0:03:54]} 22. a4 {[%emt 0:01:26]} Qb8 {[%emt 0:01:51]} 23. Nd5 {[%emt 0:01:09]} Qa7 {[%emt 0:00:43]} 24. Nh5 {[%emt 0:01:23]} Nxh5 $1 {[%emt 0:06:39]} 25. Qxh5 {[%emt 0:00:03]} g6 {[%emt 0:00:13]} 26. Qh4 {[%emt 0:02:22]} Kg7 {[%emt 0:02:03]} 27. Qg3 {[%emt 0:02:42]} Rae8 {[%emt 0:02:11]} 28. h4 {[%emt 0:01:09]} c6 {[%emt 0:06:42]} 29. Ne3 {[%emt 0:01:49] Black must now prevent Nf5+. White is more active.} Nf4 {[%emt 0:00:28]} 30. Nf5+ {[%emt 0:03:17]} (30. Bc2 $14) 30... Bxf5 $11 {[%emt 0:00:17]} 31. exf5 {[%emt 0:00:03]} Qb6 {[%emt 0:00:47]} 32. Bc4 {[%emt 0:03:42]} d5 {[%emt 0:01:05]} 33. Bf1 {[%emt 0:00:08]} Qc7 {[%emt 0:01:07]} 34. c4 {[%emt 0:04:17]} ({Better is} 34. fxg6 $14 h5 35. Rab1) 34... g5 {[%emt 0:01:32]} 35. Qg4 {[%emt 0:01:52] Hoping for hxg5.} dxc4 {[%emt 0:01:25]} (35... exd4 36. hxg5 fxg5 37. Rxe8 Rxe8 38. g3 $16) 36. Bxc4 {[%emt 0:00:44] Threatens to win with hxg5.} h5 {[%emt 0:01:33]} 37. Qg3 {[%emt 0:01:10]} Qd7 $2 {[%emt 0:03:41]} (37... Kh6 $1 $11 {and Black is okay.}) 38. hxg5 $18 {[%emt 0:00:43]} Qxf5 {[%emt 0:00:02]} 39. gxf6+ {[%emt 0:00:32]} Kxf6 {[%emt 0:00:03]} 40. dxe5+ {[%emt 0:01:06]} Rxe5 {[%emt 0:00:01] [#]} 41. Rad1 {[%emt 0:00:27] The board is on fire.} (41. Qc3 $1 $16) 41... Rfe8 $2 {[%emt 0:01:02][%mdl 8192] A mistake that costs the game.} (41... Qg4 $14) 42. Rd6+ {[%emt 0:00:23] White is clearly winning.} Ke7 {[%emt 0:01:10]} 43. Rxe5+ {[%emt 0:00:40]} (43. Red1 Rd5 44. R6xd5 cxd5 45. Qg7+ Kd6 $18) 43... Qxe5 {[%emt 0:00:02] [#]} 44. Re6+ {[%emt 0:00:11][%mdl 512]} Qxe6 {[%emt 0:00:10]} 45. Qg7+ {[%emt 0:00:05][%mdl 64] Skewer} ({Don't blunder} 45. Qxf4 $2 Qe1+ 46. Bf1 (46. Kh2 $2 Kd7 $19) 46... Rd8 47. Qc7+ Rd7 $19) 45... Kd6 {[%emt 0:01:53]} 46. Bxe6 {[%emt 0:00:06]} Rxe6 {[%emt 0:00:08]} 47. Qxb7 {[%emt 0:00:46] Weighted Error Value: White=0.09 (flawless) /Black=0.27 (precise)} 1-0